bitfinex-derivatives/quotes_BTCF0:USTF0_20230901
["timestamp","ask_amount","ask_price","bid_price","bid_amount"]
[1693577899856,0.4251,25911.0,25910.0,0.24468111]
[1693577900263,0.4251,25911.0,25910.0,0.32178039]
[1693577900664,0.47578907,25911.0,25910.0,0.30178039]
[1693577901065,0.53233745,25911.0,25910.0,0.30178039]
[1693577901765,0.48164838,25911.0,25910.0,0.30178039]
[1693577902257,0.4251,25911.0,25910.0,0.35646946]
[1693577902458,0.48550838,25911.0,25910.0,0.30178039]
[1693577902776,0.4251,25911.0,25910.0,0.37832877]
[1693577903266,0.48164838,25911.0,25910.0,0.32178039]
[1693577903667,0.4251,25911.0,25910.0,0.32178039]
[1693577903864,0.4251,25911.0,25910.0,0.43301784]
[1693577904174,0.53233745,25911.0,25910.0,0.32178039]
[1693577904362,0.53233745,25911.0,25910.0,0.30178039]
[1693577906572,0.48164838,25911.0,25910.0,0.30178039]
[1693577906872,0.4251,25911.0,25910.0,0.35832877]
[1693577907064,0.4251,25911.0,25910.0,0.77542877]
[1693577907263,0.4251,25911.0,25910.0,0.85011784]
[1693577907477,0.4251,25911.0,25910.0,0.77301856]
[1693577908471,0.4251,25911.0,25910.0,0.75301856]
[1693577908674,0.4251,25911.0,25910.0,0.77301856]
[1693577909573,0.008,25911.0,25910.0,0.77301856]
[1693577910473,0.008,25911.0,25910.0,0.88863067]
[1693577911171,0.008,25911.0,25910.0,0.86863067]
[1693577911471,0.008,25911.0,25910.0,0.88863067]
[1693577911870,0.008,25911.0,25910.0,1.35338234]
[1693577912078,0.4171,25913.0,25910.0,1.76291785]
[1693577912285,0.4171,25913.0,25912.0,0.5327392]
[1693577912670,0.4171,25913.0,25912.0,0.64397665]
[1693577914376,0.4211,25913.0,25912.0,0.65597665]
[1693577914775,0.4251,25913.0,25912.0,0.65597665]
[1693577915488,0.4251,25913.0,25912.0,0.54033745]
[1693577915675,0.4241,25913.0,25912.0,0.69997368]
[1693577915981,0.4241,25913.0,25912.0,1.2762311]
[1693577915982,0.007,25913.0,25912.0,1.2762311]
[1693577918080,0.4241,25913.0,25912.0,0.50964838]
[1693577918279,0.4241,25913.0,25912.0,0.56433745]
[1693577920383,0.4241,25913.0,25912.0,0.67997368]
[1693577920971,0.4241,25913.0,25912.0,0.69997368]
[1693577921176,0.007,25913.0,25912.0,1.28207363]
[1693577925389,0.007,25913.0,25912.0,1.26207363]
[1693577925892,0.4241,25913.0,25912.0,0.50964838]
[1693577926092,0.4241,25913.0,25912.0,0.11308569]
[1693577926298,0.4241,25913.0,25912.0,0.036]
[1693577926299,0.4441,25913.0,25912.0,0.036]
[1693577926588,0.55133745,25913.0,25912.0,0.036]
[1693577929587,0.49478907,25913.0,25912.0,0.036]
[1693577929787,0.55133745,25913.0,25912.0,0.036]
[1693577930392,0.50064838,25913.0,25912.0,0.036]
[1693577930790,0.55133745,25913.0,25912.0,0.036]
[1693577931289,0.53133745,25913.0,25912.0,0.036]
[1693577931491,0.55133745,25913.0,25912.0,0.036]
[1693577932602,0.4441,25913.0,25912.0,0.036]
[1693577933092,0.4441,25913.0,25912.0,0.14723745]
[1693577933793,0.4441,25913.0,25912.0,0.09254838]
[1693577934196,0.4441,25913.0,25912.0,0.14723745]
[1693577934497,0.55133745,25913.0,25912.0,0.036]
[1693577935901,0.4241,25913.0,25912.0,0.036]
[1693577936402,0.4241,25913.0,25912.0,0.14723745]
[1693577936608,0.4241,25913.0,25912.0,0.09254838]
[1693577937402,0.4241,25913.0,25912.0,0.14723745]
[1693577937599,0.4241,25913.0,25912.0,0.09254838]
[1693577938907,0.4241,25913.0,25912.0,0.14723745]
[1693577939109,0.4241,25913.0,25912.0,0.09254838]
[1693577939402,0.50064838,25913.0,25912.0,0.036]
[1693577939599,0.55133745,25913.0,25912.0,0.036]
[1693577940205,0.53133745,25913.0,25912.0,0.036]
[1693577940708,0.4241,25913.0,25912.0,0.036]
[1693577941105,0.4241,25913.0,25912.0,0.14723745]
[1693577941401,0.4241,25913.0,25912.0,0.22432314]
[1693577941611,0.4241,25913.0,25912.0,0.14723745]
[1693577943103,0.4241,25913.0,25912.0,0.09254838]
[1693577943307,0.4241,25913.0,25912.0,0.14723745]
[1693577943506,0.4241,25913.0,25912.0,0.22432314]
[1693577944207,0.007,25913.0,25912.0,0.64142314]
[1693577945497,0.007,25913.0,25912.0,0.56433745]
[1693577946005,0.007,25913.0,25912.0,1.27982753]
[1693577946309,0.007,25913.0,25912.0,1.1641913]
[1693577946510,0.007,25913.0,25912.0,1.4641913]
[1693577947014,0.4171,25920.0,25912.0,1.4641913]
[1693577947203,0.4171,25920.0,25919.0,0.4171]
[1693577947398,0.4171,25920.0,25919.0,0.52833745]
[1693577948710,0.4531,25920.0,25919.0,0.53133745]
[1693577949810,0.4891,25920.0,25919.0,0.53333745]
[1693577950213,0.4891,25920.0,25919.0,0.55333745]
[1693577951113,0.4891,25920.0,25919.0,1.12884328]
[1693577951114,0.02711192,25920.0,25919.0,1.12884328]
[1693577951313,0.02711192,25920.0,25919.0,1.10884328]
[1693577951611,0.02711192,25920.0,25919.0,1.12884328]
[1693577952007,0.02711192,25920.0,25919.0,1.28244328]
[1693577952304,0.03011192,25920.0,25919.0,1.31644328]
[1693577953215,0.003,25920.0,25919.0,1.30344328]
[1693577953916,0.003,25920.0,25919.0,0.72793745]
[1693577956804,0.003,25920.0,25919.0,0.70793745]
[1693577957022,0.003,25920.0,25919.0,0.72793745]
[1693577958518,0.003,25920.0,25919.0,0.70793745]
[1693577960108,0.003,25920.0,25919.0,0.73816733]
[1693577963211,0.4201,25920.0,25919.0,0.73816733]
[1693577963815,0.4201,25920.0,25919.0,0.62692988]
[1693577964210,0.47664838,25920.0,25919.0,0.68161895]
[1693577964621,0.4201,25920.0,25919.0,0.68161895]
[1693577965029,0.4201,25920.0,25919.0,0.73816733]
[1693577966926,0.003,25920.0,25919.0,0.73816733]
[1693577968525,0.003,25920.0,25919.0,0.68347826]
[1693577969023,0.003,25920.0,25919.0,0.73816733]
[1693577974433,0.003,25920.0,25919.0,1.31628629]
[1693577974833,0.003,25920.0,25919.0,1.33628629]
[1693577975226,0.003,25920.0,25919.0,1.41317975]
[1693577975722,0.4171,25928.0,25921.0,0.3]
[1693577975934,1.27057857,25933.0,25927.0,0.4171]
[1693577975935,0.1627,25931.0,25927.0,0.4171]
[1693577976137,0.02,25931.0,25930.0,0.4171]
[1693577976321,0.02,25931.0,25928.0,0.4171]
[1693577976322,0.5998,25931.0,25928.0,0.4171]
[1693577976527,0.4171,25929.0,25928.0,0.4171]
[1693577977324,0.4171,25929.0,25928.0,0.47178907]
[1693577977634,0.4171,25929.0,25928.0,0.4171]
[1693577977937,0.42096,25929.0,25928.0,0.5781]
[1693577978138,0.42096,25929.0,25928.0,0.5791]
[1693577978434,0.49364838,25929.0,25928.0,0.5791]
[1693577978732,0.54433745,25929.0,25928.0,0.5791]
[1693577978924,0.56133745,25929.0,25928.0,0.5791]
[1693577979233,0.52564838,25929.0,25928.0,0.5811]
[1693577979535,0.4691,25929.0,25928.0,0.5811]
[1693577979732,0.4691,25929.0,25928.0,0.69233745]
[1693577980138,0.4691,25929.0,25928.0,0.63764838]
[1693577980335,0.4691,25929.0,25928.0,0.69233745]
[1693577981230,0.47296,25929.0,25928.0,0.63764838]
[1693577981431,0.4691,25929.0,25928.0,0.63764838]
[1693577983236,0.4691,25929.0,25928.0,0.69233745]
[1693577984141,0.4491,25929.0,25928.0,0.69233745]
[1693577984440,0.032,25929.0,25928.0,0.71233745]
[1693577984833,0.032,25929.0,25928.0,1.29234295]
[1693577985035,0.00883103,25929.0,25928.0,1.29234295]
[1693577985433,0.00883103,25929.0,25928.0,1.59234295]
[1693577985741,0.00883103,25929.0,25928.0,1.66921431]
[1693577986238,0.00883103,25929.0,25928.0,1.59234295]
[1693577986940,0.00883103,25929.0,25928.0,1.62286958]
[1693577987134,0.00883103,25929.0,25928.0,1.62086958]
[1693577987339,0.00386,25936.0,25929.0,0.4171]
[1693577987538,0.02386,25936.0,25935.0,0.4171]
[1693577987837,0.00386,25936.0,25935.0,0.52833745]
[1693577988041,0.02386,25936.0,25935.0,0.52833745]
[1693577988740,0.02486,25936.0,25935.0,0.52833745]
[1693577989640,0.4171,25940.0,25935.0,1.12499276]
[1693577989833,0.014,25936.0,25935.0,0.59765531]
[1693577990036,0.014,25936.0,25935.0,1.14599276]
[1693577990945,0.014,25940.0,25937.0,0.4171]
[1693577991147,0.014,25940.0,25939.0,0.4171]
[1693577991342,0.4171,25942.0,25939.0,0.4171]
[1693577991545,0.4371,25942.0,25941.0,0.4171]
[1693577992247,0.4371,25942.0,25941.0,0.52833745]
[1693577992435,0.4371,25942.0,25941.0,0.47364838]
[1693577992838,0.4171,25942.0,25941.0,0.47364838]
[1693577993039,0.4171,25947.0,25941.0,1.04832825]
[1693577993234,0.02,25947.0,25946.0,0.4171]
[1693577993438,0.00386,25951.0,25946.0,0.77364838]
[1693577993636,0.02386,25951.0,25950.0,0.4171]
[1693577993942,0.02,25951.0,25950.0,0.52833745]
[1693577994737,0.4371,25951.0,25950.0,0.52833745]
[1693577995137,0.02386,25951.0,25950.0,0.52833745]
[1693577995347,0.4371,25951.0,25949.0,0.4171]
[1693577995545,0.4171,25950.0,25949.0,0.4171]
[1693577995740,0.47364838,25950.0,25949.0,0.4171]
[1693577995945,0.49364838,25950.0,25949.0,0.4171]
[1693577997046,0.07654838,25950.0,25949.0,0.4171]
[1693577997255,0.07754838,25950.0,25949.0,0.62]
[1693577997556,0.11454838,25950.0,25949.0,0.623]
[1693577998750,0.73154838,25950.0,25949.0,0.006]
[1693577999059,0.78223745,25950.0,25949.0,0.006]
[1693578000254,0.675,25950.0,25949.0,0.006]
[1693578000758,0.78223745,25950.0,25949.0,0.006]
[1693578011864,1.08223745,25950.0,25945.0,0.03050981]
[1693578012067,1.08223745,25950.0,25939.0,0.05897597]
[1693578012068,0.00385,25945.0,25939.0,0.05897597]
[1693578012266,0.00385,25945.0,25937.0,0.617]
[1693578012267,0.617,25942.0,25937.0,0.617]
[1693578012569,0.617,25942.0,25938.0,0.1639]
[1693578012770,0.617,25942.0,25939.0,0.11123745]
[1693578012967,0.617,25942.0,25938.0,0.1955]
[1693578013162,0.617,25942.0,25939.0,0.05468907]
[1693578013367,0.617,25942.0,25940.0,0.05654838]
[1693578013570,0.66768907,25942.0,25940.0,0.01870724]
[1693578013964,0.617,25944.0,25940.0,0.65570724]
[1693578014662,0.10723745,25943.0,25940.0,0.65570724]
[1693578014863,0.617,25944.0,25940.0,0.65570724]
[1693578015065,0.05654838,25943.0,25940.0,0.65570724]
[1693578015272,0.05068907,25942.0,25940.0,0.65570724]
[1693578015570,0.617,25944.0,25940.0,0.65570724]
[1693578015763,0.10723745,25943.0,25940.0,0.65570724]
[1693578015961,0.617,25944.0,25940.0,0.65570724]
[1693578016161,0.10723745,25943.0,25940.0,0.65570724]
[1693578016364,0.617,25944.0,25940.0,0.65570724]
[1693578016762,0.11023745,25943.0,25940.0,0.69270724]
[1693578016962,0.62,25943.0,25940.0,0.07570724]
[1693578017367,0.10723745,25942.0,25941.0,0.4166]
[1693578017672,0.47314838,25942.0,25941.0,0.43530724]
[1693578018573,0.52383745,25942.0,25941.0,0.43530724]
[1693578018872,0.52383745,25942.0,25941.0,0.43730724]
[1693578020462,0.56083745,25942.0,25941.0,0.44030724]
[1693578020667,0.56083745,25942.0,25941.0,0.43830724]
[1693578020862,0.56483745,25942.0,25941.0,0.44030724]
[1693578023372,0.56483745,25942.0,25941.0,0.005]
[1693578023574,0.56483745,25942.0,25941.0,0.02370724]
[1693578023966,0.56483745,25942.0,25941.0,0.005]
[1693578024266,0.56483745,25942.0,25941.0,0.02370724]
[1693578025377,0.56483745,25942.0,25941.0,0.06233308]
[1693578025575,0.56483745,25942.0,25941.0,0.005]
[1693578028486,0.56483745,25942.0,25941.0,0.02370724]
[1693578028871,0.56483745,25942.0,25941.0,0.005]
[1693578029574,0.56483745,25942.0,25941.0,0.02370724]
[1693578030181,0.56483745,25942.0,25941.0,0.005]
[1693578030571,0.56483745,25942.0,25941.0,0.02370724]
[1693578030772,0.56483745,25942.0,25941.0,0.005]
[1693578031680,0.56483745,25942.0,25941.0,0.02370724]
[1693578031882,0.56483745,25942.0,25941.0,0.005]
[1693578032083,0.56483745,25942.0,25941.0,0.03517506]
[1693578032781,0.56483745,25942.0,25941.0,0.0538823]
[1693578034085,0.58483745,25942.0,25941.0,0.03517506]
[1693578034384,0.58483745,25942.0,25941.0,0.005]
[1693578035274,0.77524111,25942.0,25941.0,0.005]
[1693578040183,0.00386,25936.0,25934.0,0.3197]
[1693578040485,0.52383745,25935.0,25934.0,0.1602]
[1693578040687,0.52383745,25935.0,25931.0,0.158]
[1693578040885,0.4166,25932.0,25931.0,0.3333]
[1693578041081,0.52383745,25932.0,25931.0,0.31431]
[1693578041484,0.52383745,25932.0,25931.0,0.33301724]
[1693578041883,0.52383745,25932.0,25931.0,0.31402724]
[1693578042278,0.52683745,25932.0,25931.0,0.35102724]
[1693578042675,0.52683745,25932.0,25931.0,0.36802724]
[1693578042889,0.52683745,25932.0,25931.0,0.24800724]
[1693578043182,0.52683745,25932.0,25931.0,0.23500724]
[1693578043183,0.52583745,25932.0,25931.0,0.23500724]
[1693578043387,0.52583745,25932.0,25931.0,0.2163]
[1693578043585,0.52583745,25932.0,25931.0,0.23500724]
[1693578044886,0.52583745,25932.0,25931.0,0.2163]
[1693578045186,0.54583745,25932.0,25931.0,0.061]
[1693578045489,1.74583745,25932.0,25931.0,0.052]
[1693578045676,1.74383745,25932.0,25931.0,0.02185661]
[1693578045877,1.78083745,25932.0,25931.0,0.02485661]
[1693578046999,0.7166,25931.0,25924.0,0.1577]
[1693578047293,0.4166,25925.0,25924.0,0.19640724]
[1693578047490,0.47314838,25925.0,25924.0,0.19640724]
[1693578047793,0.4166,25925.0,25924.0,0.25295562]
[1693578048089,0.4166,25925.0,25924.0,0.32964178]
[1693578048291,0.4166,25925.0,25924.0,0.30764469]
[1693578049091,0.4166,25925.0,25924.0,0.28764469]
[1693578049292,0.4166,25925.0,25924.0,0.30864469]
[1693578049486,0.4166,25925.0,25924.0,0.25395562]
[1693578049991,0.4246,25925.0,25924.0,0.19740724]
[1693578050390,0.48114838,25925.0,25924.0,0.17740724]
[1693578050591,0.48114838,25925.0,25924.0,0.19740724]
[1693578050889,0.53183745,25925.0,25924.0,0.19740724]
[1693578051191,0.53483745,25925.0,25924.0,0.19740724]
[1693578052196,0.53483745,25925.0,25924.0,0.17740724]
[1693578055788,0.53483745,25925.0,25924.0,0.17630724]
[1693578058498,0.48414838,25925.0,25924.0,0.17630724]
[1693578058796,0.53483745,25925.0,25924.0,0.17630724]
[1693578060699,0.48414838,25925.0,25924.0,0.19630724]
[1693578061299,0.53483745,25925.0,25924.0,0.17630724]
[1693578062201,0.55483745,25925.0,25924.0,0.1576]
[1693578062788,0.02,25925.0,25924.0,0.1576]
[1693578062992,0.03105452,25928.0,25924.0,0.65074838]
[1693578062993,0.4166,25928.0,25924.0,0.65074838]
[1693578063190,0.4166,25928.0,25927.0,0.4166]
[1693578063500,0.4166,25928.0,25927.0,0.54783745]
[1693578064101,0.4186,25928.0,25927.0,0.54783745]
[1693578064299,0.4186,25928.0,25927.0,0.58654469]
[1693578064505,0.4186,25928.0,25927.0,0.58954469]
[1693578064506,0.4546,25928.0,25927.0,0.58954469]
[1693578065096,0.4676,25928.0,25927.0,0.47930724]
[1693578065503,0.4316,25928.0,25927.0,0.47630724]
[1693578065695,0.4516,25928.0,25927.0,0.53299631]
[1693578065895,0.4516,25928.0,25927.0,0.47830724]
[1693578066094,0.4516,25928.0,25927.0,0.53299631]
[1693578066804,0.4516,25928.0,25927.0,0.58954469]
[1693578070299,0.4516,25928.0,25927.0,0.47830724]
[1693578070699,0.4516,25928.0,25927.0,0.45830724]
[1693578071101,0.4516,25928.0,25927.0,0.51299631]
[1693578071401,0.4516,25928.0,25927.0,0.45830724]
[1693578071591,0.4516,25928.0,25927.0,0.51299631]
[1693578071796,0.4516,25928.0,25927.0,0.54310373]
[1693578072004,0.4516,25928.0,25927.0,0.48841466]
[1693578072602,0.4516,25928.0,25927.0,0.54310373]
[1693578072805,0.4516,25928.0,25927.0,0.59965211]
[1693578073514,0.035,25928.0,25927.0,0.61965211]
[1693578076604,0.035,25928.0,25927.0,0.62149961]
[1693578079515,0.035,25928.0,25927.0,0.69818577]
[1693578079914,0.035,25928.0,25927.0,1.19832293]
[1693578080114,0.035,25928.0,25927.0,1.27500909]
[1693578080418,0.035,25928.0,25927.0,1.19832293]
[1693578080920,0.035,25928.0,25927.0,1.31335217]
[1693578082709,0.035,25928.0,25927.0,1.08708548]
[1693578082915,0.4516,25928.0,25927.0,1.08708548]
[1693578083625,0.4516,25928.0,25927.0,1.29335217]
[1693578083822,0.4516,25928.0,25927.0,1.31335217]
[1693578085822,0.4516,25928.0,25927.0,1.29335217]
[1693578086215,0.4516,25928.0,25927.0,1.17832293]
[1693578086923,0.035,25928.0,25927.0,1.17832293]
[1693578090318,0.4166,25935.0,25930.0,0.7166]
[1693578090515,0.16376,25936.0,25934.0,0.4166]
[1693578090516,0.00386,25936.0,25934.0,0.4166]
[1693578090719,0.4166,25938.0,25935.0,0.4184475]
[1693578090926,0.00386,25936.0,25935.0,0.0018475]
[1693578091219,0.00386,25936.0,25935.0,0.4184475]
[1693578091220,0.42046,25936.0,25935.0,0.4184475]
[1693578091622,0.42046,25936.0,25935.0,0.52968495]
[1693578091824,0.155,25937.0,25935.0,0.52968495]
[1693578092124,0.00386,25938.0,25936.0,0.52783745]
[1693578092326,0.4166,25939.0,25937.0,0.4166]
[1693578092629,0.4166,25939.0,25938.0,0.52783745]
[1693578092829,0.4166,25939.0,25938.0,0.52968495]
[1693578093317,0.4166,25939.0,25938.0,0.56839219]
[1693578095226,0.4286,25939.0,25938.0,0.56839219]
[1693578096524,0.4436,25939.0,25938.0,0.56939219]
[1693578096928,0.027,25939.0,25938.0,0.56939219]
[1693578097421,0.027,25939.0,25938.0,0.56775219]
[1693578099025,0.027,25939.0,25938.0,0.52904495]
[1693578099831,0.027,25939.0,25938.0,0.56775219]
[1693578101621,0.027,25939.0,25938.0,0.52904495]
[1693578102126,0.027,25939.0,25938.0,0.56775219]
[1693578102321,0.027,25939.0,25938.0,0.59918395]
[1693578104733,0.027,25939.0,25938.0,1.17484553]
[1693578105236,0.027,25939.0,25938.0,1.59144553]
[1693578107339,0.00057828,25941.0,25939.0,0.3]
[1693578107533,0.00057828,25941.0,25940.0,0.52783745]
[1693578107730,0.00057828,25941.0,25940.0,1.10849354]
[1693578107928,0.00057828,25941.0,25940.0,1.28579354]
[1693578108325,0.00057828,25941.0,25940.0,1.32450078]
[1693578108720,0.00057828,25941.0,25940.0,1.30450078]
[1693578108919,0.00057828,25941.0,25940.0,1.32450078]
[1693578109130,0.00257828,25941.0,25940.0,1.32450078]
[1693578109836,0.00357828,25941.0,25940.0,1.36150078]
[1693578111127,0.00357828,25941.0,25940.0,1.37950078]
[1693578111328,0.00357828,25941.0,25940.0,1.39950078]
[1693578113132,0.00357828,25941.0,25940.0,1.43683664]
[1693578113329,0.00357828,25941.0,25940.0,1.45683664]
[1693578113530,0.00357828,25941.0,25940.0,1.43683664]
[1693578113729,0.00357828,25941.0,25940.0,1.45683664]
[1693578115230,0.00357828,25941.0,25940.0,1.43683664]
[1693578115430,0.00357828,25941.0,25940.0,1.45683664]
[1693578116026,0.00357828,25941.0,25940.0,1.43683664]
[1693578128647,0.00357828,25941.0,25940.0,1.3981294]
[1693578129846,0.00742828,25941.0,25940.0,1.2408294]
[1693578130438,0.00742828,25941.0,25940.0,1.18614033]
[1693578130839,0.00742828,25941.0,25940.0,1.2408294]
[1693578134049,0.00742828,25941.0,25940.0,1.31760511]
[1693578134244,0.00742828,25941.0,25940.0,1.2408294]
[1693578134551,0.00742828,25941.0,25940.0,1.31760511]
[1693578136546,0.00742828,25941.0,25940.0,1.2408294]
[1693578136746,0.00742828,25941.0,25940.0,1.31775121]
[1693578137745,0.00742828,25941.0,25940.0,0.62770517]
[1693578137946,0.00742828,25941.0,25940.0,0.55078336]
[1693578138250,0.02742828,25941.0,25940.0,0.55078336]
[1693578138456,0.47886573,25941.0,25940.0,0.55078336]
[1693578138952,0.45886573,25941.0,25940.0,0.55078336]
[1693578139153,0.47886573,25941.0,25940.0,0.55078336]
[1693578140346,0.47886573,25941.0,25940.0,0.13418336]
[1693578141059,0.45886573,25941.0,25940.0,0.13418336]
[1693578141353,0.47886573,25941.0,25940.0,0.13418336]
[1693578142252,0.00742828,25941.0,25940.0,0.55078336]
[1693578142459,0.00357828,25941.0,25940.0,1.22427299]
[1693578142650,0.00357828,25941.0,25940.0,1.6737522]
[1693578142953,0.00357828,25941.0,25940.0,1.59729587]
[1693578143149,0.00357828,25941.0,25940.0,1.57729587]
[1693578143357,0.00357828,25941.0,25940.0,1.71245944]
[1693578144058,0.00357828,25941.0,25940.0,1.69245944]
[1693578146657,0.00357828,25941.0,25940.0,1.71245944]
[1693578146859,0.00357828,25941.0,25940.0,1.59729587]
[1693578147058,0.1517,25944.0,25940.0,1.59729587]
[1693578147355,0.1517,25944.0,25943.0,0.4166]
[1693578147756,0.1517,25944.0,25943.0,0.52968495]
[1693578148659,0.1547,25944.0,25943.0,0.52968495]
[1693578149264,0.1547,25944.0,25943.0,0.56839219]
[1693578149560,0.1547,25944.0,25943.0,0.4184475]
[1693578150458,0.1547,25944.0,25943.0,0.45715474]
[1693578150756,0.1547,25944.0,25943.0,0.51184381]
[1693578150957,0.1547,25944.0,25943.0,0.53268495]
[1693578151350,0.1547,25944.0,25943.0,0.4214475]
[1693578152262,0.1547,25944.0,25943.0,0.55497648]
[1693578152560,0.1547,25944.0,25943.0,0.64837279]
[1693578152758,0.1517,25944.0,25943.0,0.64937279]
[1693578152959,0.1517,25944.0,25943.0,0.61066555]
[1693578153859,0.1517,25944.0,25943.0,0.68084861]
[1693578154759,0.1517,25944.0,25943.0,0.60386801]
[1693578155253,0.1517,25944.0,25943.0,0.68084861]
[1693578155558,0.1517,25944.0,25943.0,0.64214137]
[1693578155758,0.1517,25944.0,25943.0,0.68084861]
[1693578156360,0.1517,25944.0,25943.0,0.64214137]
[1693578156862,0.1517,25944.0,25943.0,0.68084861]
[1693578157753,0.1517,25944.0,25943.0,1.26137539]
[1693578158856,0.1909763,25948.0,25946.0,0.4166]
[1693578159053,0.00385,25951.0,25946.0,0.4166]
[1693578159054,0.04070085,25949.0,25947.0,0.52783745]
[1693578159253,0.4166,25953.0,25948.0,0.4166]
[1693578159460,0.44045,25953.0,25952.0,0.4166]
[1693578159949,0.02385,25953.0,25952.0,0.47499588]
[1693578160153,0.02385,25953.0,25952.0,0.52968495]
[1693578160753,0.00385,25953.0,25952.0,0.47499588]
[1693578160955,0.44045,25953.0,25952.0,0.4184475]
[1693578161154,0.44045,25953.0,25952.0,0.4214475]
[1693578161155,0.47745,25953.0,25952.0,0.4214475]
[1693578161961,0.64225,25953.0,25952.0,0.47613657]
[1693578162154,0.20565,25953.0,25952.0,0.47613657]
[1693578162649,0.20565,25953.0,25952.0,0.53268495]
[1693578163258,0.16865,25953.0,25952.0,0.52968495]
[1693578163451,0.20565,25953.0,25952.0,0.48099588]
[1693578163655,0.20565,25953.0,25952.0,0.53568495]
[1693578163962,0.20565,25953.0,25952.0,0.48099588]
[1693578164162,0.20565,25953.0,25952.0,0.4244475]
[1693578164459,0.20565,25953.0,25952.0,0.48099588]
[1693578164861,0.20565,25953.0,25952.0,0.53568495]
[1693578165163,0.20565,25953.0,25952.0,0.48099588]
[1693578166159,0.20565,25953.0,25952.0,0.53568495]
[1693578166666,0.20565,25953.0,25952.0,0.48099588]
[1693578167166,0.20565,25953.0,25952.0,0.53568495]
[1693578167364,0.20565,25953.0,25952.0,0.48099588]
[1693578167866,0.20565,25953.0,25952.0,0.53568495]
[1693578168867,0.20565,25953.0,25952.0,0.4244475]
[1693578169365,0.24048745,25953.0,25952.0,0.4244475]
[1693578169562,0.20565,25953.0,25952.0,0.4244475]
[1693578169969,0.20565,25953.0,25952.0,0.47913657]
[1693578170666,0.62225,25953.0,25952.0,0.53568495]
[1693578170971,0.6184,25953.0,25952.0,0.53568495]
[1693578171166,0.2018,25953.0,25952.0,1.11422575]
[1693578171868,0.2018,25953.0,25952.0,1.15293299]
[1693578172363,0.2018,25953.0,25952.0,1.14993299]
[1693578172566,0.2018,25953.0,25952.0,1.15293299]
[1693578172767,0.2018,25953.0,25952.0,1.11422575]
[1693578173269,0.1998,25953.0,25952.0,1.15293299]
[1693578173768,0.035,25953.0,25952.0,1.15293299]
[1693578173960,0.035,25953.0,25952.0,1.11422575]
[1693578174161,0.035,25953.0,25952.0,1.15293299]
[1693578174361,0.035,25953.0,25952.0,1.11422575]
[1693578174569,0.013,25953.0,25952.0,1.11222575]
[1693578176265,0.025,25953.0,25952.0,1.14993299]
[1693578177769,0.025,25953.0,25952.0,1.09338461]
[1693578177970,0.1844,25953.0,25952.0,1.14993299]
[1693578178772,0.025,25953.0,25952.0,1.14993299]
[1693578189883,0.025,25953.0,25952.0,1.16993299]
[1693578190077,0.025,25953.0,25952.0,1.14993299]
[1693578190281,0.025,25953.0,25952.0,1.16993299]
[1693578190787,0.025,25953.0,25952.0,1.33543299]
[1693578191486,0.025,25953.0,25952.0,1.33443299]
[1693578191677,0.00057797,25955.0,25953.0,0.4166]
[1693578191885,0.00057797,25955.0,25954.0,0.52968495]
[1693578192184,0.00057797,25955.0,25954.0,1.11082101]
[1693578192583,0.00057797,25955.0,25954.0,1.14952825]
[1693578193175,0.00057797,25955.0,25954.0,1.11082101]
[1693578193682,0.02657797,25955.0,25954.0,1.11082101]
[1693578194281,0.02657797,25955.0,25954.0,1.11282101]
[1693578194488,0.03657797,25955.0,25954.0,1.11582101]
[1693578194788,0.03657797,25955.0,25954.0,1.15452825]
[1693578195188,0.03657797,25955.0,25954.0,1.09797987]
[1693578195886,0.03657797,25955.0,25954.0,1.11582101]
[1693578196988,0.03657797,25955.0,25954.0,1.15452825]
[1693578198388,0.03657797,25955.0,25954.0,1.18542587]
[1693578199095,0.03657797,25955.0,25954.0,1.14671863]
[1693578199297,0.03657797,25955.0,25954.0,1.18542587]
[1693578199595,0.03657797,25955.0,25954.0,1.14671863]
[1693578199994,0.03657797,25955.0,25954.0,1.18542587]
[1693578200195,0.03657797,25955.0,25954.0,1.14671863]
[1693578201098,0.03657797,25955.0,25954.0,1.18542587]
[1693578201398,0.03657797,25955.0,25954.0,1.14671863]
[1693578202291,0.03657797,25955.0,25954.0,1.18542587]
[1693578204097,0.18867797,25955.0,25954.0,1.18542587]
[1693578205296,0.18867797,25955.0,25954.0,1.14671863]
[1693578205508,0.62527797,25955.0,25954.0,0.0068475]
[1693578205894,0.66011542,25955.0,25954.0,0.0068475]
[1693578206198,0.85128971,25955.0,25954.0,0.0068475]
[1693578207501,0.66011542,25955.0,25954.0,0.0068475]
[1693578207704,0.62527797,25955.0,25954.0,0.0068475]
[1693578208302,0.85128971,25955.0,25954.0,0.0068475]
[1693578208505,0.79645226,25955.0,25954.0,0.11808495]
[1693578208693,0.60527797,25955.0,25954.0,0.06339588]
[1693578208892,0.60527797,25955.0,25954.0,0.11808495]
[1693578209792,0.60527797,25955.0,25954.0,0.15679219]
[1693578210501,0.18867797,25955.0,25954.0,0.57339219]
[1693578210702,0.18867797,25955.0,25954.0,1.150041]
[1693578216004,0.01121012,25955.0,25954.0,1.150041]
[1693578216402,0.01121012,25955.0,25954.0,1.301841]
[1693578217498,0.01121012,25955.0,25954.0,1.33275222]
[1693578221608,0.01121012,25955.0,25954.0,1.18095222]
[1693578221904,0.04604757,25955.0,25954.0,0.49306596]
[1693578222094,0.46264757,25955.0,25954.0,0.07646596]
[1693578222293,0.42781012,25955.0,25954.0,0.07646596]
[1693578222498,0.61898441,25955.0,25954.0,0.07646596]
[1693578222704,0.65382186,25955.0,25954.0,0.03775872]
[1693578223007,0.42781012,25955.0,25954.0,0.07646596]
[1693578223499,0.42781012,25955.0,25954.0,0.03775872]
[1693578224103,0.46264757,25955.0,25954.0,0.03775872]
[1693578224304,0.42781012,25955.0,25954.0,0.03775872]
[1693578225313,0.61898441,25955.0,25954.0,0.03775872]
[1693578225807,0.42781012,25955.0,25954.0,0.03775872]
[1693578226310,0.61898441,25955.0,25954.0,0.03775872]
[1693578226607,0.65382186,25955.0,25954.0,0.03775872]
[1693578227011,0.46264757,25955.0,25954.0,0.0068475]
[1693578227207,0.48264757,25955.0,25954.0,0.0068475]
[1693578228110,0.46264757,25955.0,25954.0,0.0068475]
[1693578238117,0.61965333,25955.0,25954.0,0.10210312]
[1693578238319,0.78115333,25955.0,25954.0,0.10210312]